Workbook

Sheet B.E.P.P
B1: Gouvernorat de Gafsa
A2: I - | B2: Enseignement supérieur du secteur public:
A3: 1) | B3: Evolution des établissements:
B4: Année universitaire | C4: 2013-2014 | D4: 2014-2015 | E4: 2015-2016 | F4: 2016-2017 | G4: 2017-2018 | H4: 2018-2019 | I4: 2019-2020 | J4: 2020-2021 | K4: 2021-2022
B5: Nombre des établissements | C5: 9 | D5: 9 | E5: 9 | F5: 9 | G5: 10 | H5: 10 | I5: 10 | J5: 10 | K5: 10
A7: 2) | B7: Répartition des étudiants inscrits par établissement:
B8: Année universitaire | C8: 2013-2014 | E8: 2014-2015 | G8: 2015-2016 | I8: 2016-2017 | K8: 2017-2018 | M8: 2018-2019 | O8: 2019-2020 | Q8: 2020-2021 | S8: 2021-2022
C9: Total | D9: dont femmes | E9: Total | F9: dont femmes | G9: Total | H9: dont femmes | I9: Total | J9: dont femmes | K9: Total | L9: dont femmes | M9: Total | N9: dont femmes | O9: Total | P9: dont femmes | Q9: Total | R9: dont femmes | S9: Total | T9: dont femmes
B10: Ecole Nationale d'Ingénieurs de Gafsa | E10: 83 | F10: 32 | G10: 155 | H10: 77 | I10: 244 | J10: 133 | K10: 230 | L10: 125 | M10: 201 | N10: 121 | O10: 186 | P10: 112 | Q10: 194 | R10: 117 | S10: 240 | T10: 148
B11: Faculté des Sciences de Gafsa | C11: 2801 | D11: 1762 | E11: 2639 | F11: 1745 | G11: 2406 | H11: 1574 | I11: 2117 | J11: 1399 | K11: 1732 | L11: 1166 | M11: 1757 | N11: 1190 | O11: 1703 | P11: 1195 | Q11: 1557 | R11: 1099 | S11: 1592 | T11: 1122
B12: Institut Préparatoire aux Etudes d'Ingénieur de Gafsa | C12: 293 | D12: 108 | E12: 308 | F12: 135 | G12: 311 | H12: 141 | I12: 301 | J12: 122 | K12: 286 | L12: 133 | M12: 287 | N12: 136 | O12: 222 | P12: 108 | Q12: 297 | R12: 152 | S12: 414 | T12: 206
B13: Institut Supérieur d'Administration des Entreprises de Gafsa | C13: 1426 | D13: 1020 | E13: 1435 | F13: 1018 | G13: 1308 | H13: 942 | I13: 1324 | J13: 969 | K13: 1309 | L13: 982 | M13: 1217 | N13: 918 | O13: 1227 | P13: 942 | Q13: 1075 | R13: 835 | S13: 1256 | T13: 945
B14: Institut Supérieur de sport et de l'Education Physique de Gafsa | C14: 679 | D14: 315 | E14: 425 | F14: 162 | G14: 443 | H14: 147 | I14: 410 | J14: 150 | K14: 469 | L14: 157 | M14: 535 | N14: 165 | O14: 604 | P14: 185 | Q14: 527 | R14: 177 | S14: 432 | T14: 143
B15: Institut Supérieur des Arts et Métiers de Gafsa | C15: 633 | D15: 470 | E15: 579 | F15: 436 | G15: 530 | H15: 404 | I15: 425 | J15: 339 | K15: 308 | L15: 249 | M15: 263 | N15: 205 | O15: 240 | P15: 188 | Q15: 257 | R15: 197 | S15: 300 | T15: 237
B16: Institut Supérieur des Études Appliquées en Humanités de Gafsa | C16: 2257 | D16: 1695 | E16: 2138 | F16: 1603 | G16: 1845 | H16: 1390 | I16: 1535 | J16: 1151 | K16: 1322 | L16: 1022 | M16: 1201 | N16: 951 | O16: 1408 | P16: 1083 | Q16: 1423 | R16: 1106 | S16: 1541 | T16: 1213
B17: Institut Supérieur des Etudes Technologiques de Gafsa | C17: 921 | D17: 391 | E17: 922 | F17: 417 | G17: 831 | H17: 357 | I17: 855 | J17: 346 | K17: 835 | L17: 311 | M17: 894 | N17: 378 | O17: 911 | P17: 403 | Q17: 923 | R17: 439 | S17: 1022 | T17: 517
B18: Institut Supérieur des Sciences Appliquées et de Technologie de Gafsa | C18: 943 | D18: 410 | E18: 822 | F18: 379 | G18: 795 | H18: 359 | I18: 705 | J18: 348 | K18: 617 | L18: 348 | M18: 493 | N18: 261 | O18: 423 | P18: 219 | Q18: 436 | R18: 188 | S18: 544 | T18: 250
B19: I.S des Sciences Sociales et de l'Education de Gafsa | C19: 375 | D19: 174 | E19: 308 | F19: 143 | G19: 228 | H19: 110 | I19: 660 | J19: 493 | K19: 1044 | L19: 842 | M19: 1405 | N19: 1138 | O19: 1270 | P19: 1060 | Q19: 1070 | R19: 886 | S19: 1103 | T19: 924
B20: Total | C20: =SUM(C10:C19) -> 10328 | D20: 6345 | E20: 9659 | F20: 6070 | G20: 8852 | H20: 5501 | I20: 8576 | J20: 5450 | K20: =K19+K18+K17+K16+K15+K14+K13+K12+K11+K10 -> 8152 | L20: =L19+L18+L17+L16+L15+L14+L13+L12+L11+L10 -> 5335 | M20: 8253 | N20: 5463 | O20: =SUM(O10:O19) -> 8194 | P20: =SUM(P10:P19) -> 5495 | Q20: 7759 | R20: 5196 | S20: =SUM(S10:S19) -> 8444 | T20: =SUM(T10:T19) -> 5705
A22: 3) | B22: Répartition des étudiants inscrits par domaine d'études: (CITE)
B23: Année universitaire | C23: 2013-2014 | E23: 2014-2015 | G23: 2015-2016 | I23: 2016-2017 | K23: 2017-2018 | M23: 2018-2019 | O23: 2019-2020 | Q23: 2020-2021 | S23: 2021-2022
C24: Total | D24: dont femmes | E24: Total | F24: dont femmes | G24: Total | H24: dont femmes | I24: Total | J24: dont femmes | K24: Total | L24: dont femmes | M24: Total | N24: dont femmes | O24: Total | P24: dont femmes | Q24: Total | R24: dont femmes | S24: Total | T24: dont femmes
B25: Affaires commerciales et administratives | C25: 829 | D25: 613 | E25: 889 | F25: 654 | G25: 877 | H25: 650 | I25: 940 | J25: 706 | K25: 983 | L25: 744 | M25: 949 | N25: 741 | O25: 1029 | P25: 788 | Q25: 886 | R25: 699 | S25: 1024 | T25: 788
B26: Architecture et bâtiment | C26: 167 | D26: 42 | E26: 176 | F26: 55 | G26: 195 | H26: 66 | I26: 243 | J26: 81 | K26: 271 | L26: 87 | M26: 303 | N26: 101 | O26: 283 | P26: 100 | Q26: 278 | R26: 112 | S26: 245 | T26: 106
B27: Arts | C27: 633 | D27: 470 | E27: 579 | F27: 436 | G27: 530 | H27: 404 | I27: 425 | J27: 339 | K27: 308 | L27: 249 | M27: 263 | N27: 205 | O27: 240 | P27: 188 | Q27: 257 | R27: 197 | S27: 300 | T27: 237
B28: Ingénierie et techniques apparentées | C28: 1948 | D28: 672 | E28: 2002 | F28: 773 | G28: 1992 | H28: 802 | I28: 2029 | J28: 849 | K28: 1896 | L28: 859 | M28: 1812 | N28: 864 | O28: 1604 | P28: 777 | Q28: 1610 | R28: 789 | S28: 1810 | T28: 871
B29: Lettres | C29: 2257 | D29: 1695 | E29: 2122 | F29: 1592 | G29: 1723 | H29: 1301 | I29: 1343 | J29: 1009 | K29: 1068 | L29: 818 | M29: 866 | N29: 674 | O29: 958 | P29: 700 | Q29: 920 | R29: 687 | S29: 1011 | T29: 773
B30: Mathématiques et statistiques | C30: 341 | D30: 154 | E30: 256 | F30: 114 | G30: 226 | H30: 104 | I30: 149 | J30: 73 | K30: 89 | L30: 48 | M30: 89 | N30: 42 | O30: 102 | P30: 53 | Q30: 89 | R30: 47 | S30: 115 | T30: 65
B31: Sciences informatique et multimédia | C31: 1424 | D31: 823 | E31: 1190 | F31: 732 | G31: 976 | H31: 585 | I31: 785 | J31: 465 | K31: 600 | L31: 390 | M31: 550 | N31: 327 | O31: 576 | P31: 354 | Q31: 666 | R31: 368 | S31: 937 | T31: 536
B32: Sciences de la vie | C32: 637 | D32: 558 | E32: 644 | F32: 575 | G32: 647 | H32: 576 | I32: 645 | J32: 569 | K32: 507 | L32: 452 | M32: 521 | N32: 467 | O32: 520 | P32: 474 | Q32: 539 | R32: 494 | S32: 575 | T32: 536
B33: Sciences physiques | C33: 977 | D33: 679 | E33: 940 | F33: 661 | G33: 792 | H33: 533 | I33: 574 | J33: 414 | K33: 441 | L33: 317 | M33: 395 | N33: 294 | O33: 379 | P33: 294 | Q33: 279 | R33: 216 | S33: 211 | T33: 166
B34: Sciences sociales et du comportement | C34: 436 | D34: 324 | E34: 436 | F34: 316 | G34: 451 | H34: 333 | I34: 522 | J34: 381 | K34: 525 | L34: 400 | M34: 565 | N34: 445 | O34: 629 | P34: 522 | Q34: 638 | R34: 524 | S34: 681 | T34: 560
B35: Services aux particuliers | C35: 679 | D35: 315 | E35: 425 | F35: 162 | G35: 443 | H35: 147 | I35: 410 | J35: 150 | K35: 469 | L35: 157 | M35: 535 | N35: 165 | O35: 604 | P35: 185 | Q35: 527 | R35: 177 | S35: 432 | T35: 143
B36: Formation des formateurs et sciences de l’éducation | I36: 511 | J36: 414 | K36: 995 | L36: 814 | M36: 1405 | N36: 1138 | O36: 1270 | P36: 1060 | Q36: 1070 | R36: 886 | S36: 1103 | T36: 924
B37: Total | C37: =SUM(C25:C35) -> 10328 | D37: 6345 | E37: 9659 | F37: 6070 | G37: 8852 | H37: 5501 | I37: =SUM(I25:I36) -> 8576 | J37: =SUM(J25:J36) -> 5450 | K37: =SUM(K25:K36) -> 8152 | L37: =SUM(L25:L36) -> 5335 | M37: 8253 | N37: 5463 | O37: =SUM(O25:O36) -> 8194 | P37: 5495 | Q37: 7759 | R37: 5196 | S37: 8444 | T37: 5705
A39: 4) | B39: Répartition des étudiants inscrits par type de diplôme:
B40: Année universitaire | C40: 2013-2014 | E40: 2014-2015 | G40: 2015-2016 | I40: 2016-2017 | K40: 2017-2018 | M40: 2018-2019 | O40: 2019-2020 | Q40: 2020-2021 | S40: 2021-2022
C41: Total | D41: dont femmes | E41: Total | F41: dont femmes | G41: Total | H41: dont femmes | I41: Total | J41: dont femmes | K41: Total | L41: dont femmes | M41: Total | N41: dont femmes | O41: Total | P41: dont femmes | Q41: Total | R41: dont femmes | S41: Total | T41: dont femmes
B42: Diplôme national en licence | O42: 2828 | P42: 1840 | Q42: 3936 | R42: 2587 | S42: 6835 | T42: 4678
B43: Licence fondamentale | C43: 4553 | D43: 3012 | E43: 4265 | F43: 2862 | G43: 3997 | H43: 2610 | I43: 3611 | J43: 2390 | K43: 3268 | L43: 2212 | M43: 3089 | N43: 2092 | O43: 1788 | P43: 1250 | Q43: 850 | R43: 609
B44: Licence appliquée (LMD) | C44: 4634 | D44: 2666 | E44: 4091 | F44: 2423 | G44: 3464 | H44: 2064 | I44: 3488 | J44: 2170 | K44: 3489 | L44: 2256 | M44: 3767 | N44: 2514 | O44: 2051 | P44: 1445 | Q44: 1389 | R44: 1024
B45: Cycle préparatoire | C45: 293 | D45: 108 | E45: 308 | F45: 135 | G45: 311 | H45: 141 | I45: 301 | J45: 122 | K45: 286 | L45: 133 | M45: 287 | N45: 136 | O45: 222 | P45: 108 | Q45: 194 | R45: 152 | S45: 414 | T45: 206
B46: Diplôme national d'ingénieur | E46: 83 | F46: 32 | G46: 155 | H46: 77 | I46: 244 | J46: 133 | K46: 230 | L46: 125 | M46: 455 | N46: 282 | O46: 186 | P46: 112 | Q46: 414 | R46: 117 | S46: 240 | T46: 148
B47: Mastère de recherche | C47: 380 | D47: 254 | E47: 493 | F47: 347 | G47: 513 | H47: 352 | I47: 529 | J47: 366 | K47: 506 | L47: 349 | M47: 201 | N47: 121 | O47: 435 | P47: 342 | Q47: 679 | R47: 312 | S47: 381 | T47: 282
B48: Mastère professionnel | C48: 468 | D48: 305 | E48: 419 | F48: 271 | G48: 412 | H48: 257 | I48: 403 | J48: 269 | K48: 373 | L48: 260 | M48: 454 | N48: 318 | O48: 684 | P48: 398 | Q48: 297 | R48: 395 | S48: 574 | T48: 391
B49: Total | C49: =SUM(C43:C48) -> 10328 | D49: 6345 | E49: 9659 | F49: 6070 | G49: 8852 | H49: 5501 | I49: 8576 | J49: 5450 | K49: 8152 | L49: 5335 | M49: =SUM(M43:M48) -> 8253 | N49: =SUM(N42:N48) -> 5463 | O49: =SUM(O42:O48) -> 8194 | P49: 5495 | Q49: 7759 | R49: 5196 | S49: =SUM(S42:S48) -> 8444 | T49: =SUM(T42:T48) -> 5705
A51: 5) | B51: Evolution des diplômés par établissement:
B52: Année universitaire | C52: 2013 | E52: 2014 | G52: 2015 | I52: 2016 | K52: 2017 | M52: 2018 | O52: 2019 | Q52: 2020 | S52: 2021
C53: Total | D53: dont femmes | E53: Total | F53: dont femmes | G53: Total | H53: dont femmes | I53: Total | J53: dont femmes | K53: Total | L53: dont femmes | M53: Total | N53: dont femmes | O53: Total | P53: dont femmes | Q53: Total | R53: dont femmes | S53: Total | T53: dont femmes
B54: Institut Supérieur d'Administration des Entreprises de Gafsa | C54: 329 | D54: 243 | E54: 295 | F54: 243 | G54: 257 | H54: 196 | I54: 325 | J54: 250 | K54: 184 | L54: 152 | M54: 269 | N54: 214 | O54: 199 | P54: 173 | Q54: 288 | R54: 244 | S54: 65 | T54: 39
B55: I.S des Sciences Sociales et de l'Education de Gafsa | C55: 56 | D55: 41 | E55: 111 | F55: 67 | G55: 73 | H55: 40 | I55: 72 | J55: 36 | K55: 65 | L55: 37 | M55: 27 | N55: 12 | O55: 484 | P55: 395 | Q55: 435 | R55: 369 | S55: 293 | T55: 236
B56: Institut Supérieur des Etudes Appliquées en Humanités de Gafsa | C56: 360 | D56: 291 | E56: 435 | F56: 362 | G56: 414 | H56: 324 | I56: 324 | J56: 268 | K56: 298 | L56: 236 | M56: 321 | N56: 262 | O56: 266 | P56: 217 | Q56: 240 | R56: 196 | S56: 418 | T56: 333
B57: Institut Supérieur des Etudes Technologiques de Gafsa | C57: 180 | D57: 102 | E57: 242 | F57: 129 | G57: 227 | H57: 113 | I57: 236 | J57: 119 | K57: 242 | L57: 128 | M57: 149 | N57: 70 | O57: 242 | P57: 114 | Q57: 206 | R57: 95 | S57: 154 | T57: 127
B58: Institut Supérieur du Sport et de l'Education Physique de Gafsa | C58: 122 | D58: 51 | E58: 139 | F58: 75 | G58: 85 | H58: 36 | I58: 141 | J58: 53 | K58: 130 | L58: 57 | M58: 71 | N58: 28 | O58: 107 | P58: 49 | Q58: 99 | R58: 33 | S58: 201 | T58: 108
B59: Institut Supérieur des Sciences Appliquées et de Technologie de Gafsa | C59: 352 | D59: 144 | E59: 301 | F59: 149 | G59: 197 | H59: 89 | I59: 198 | J59: 109 | K59: 201 | L59: 110 | M59: 174 | N59: 92 | O59: 173 | P59: 104 | Q59: 135 | R59: 72 | S59: 100 | T59: 28
B60: Institut Supérieur d’Arts et Métiers de Gafsa | C60: 292 | D60: 242 | E60: 197 | F60: 155 | G60: 153 | H60: 128 | I60: 136 | J60: 109 | K60: 99 | L60: 85 | M60: 136 | N60: 118 | O60: 72 | P60: 60 | Q60: 32 | R60: 28 | S60: 109 | T60: 69
B61: Faculté des Sciences de Gafsa | C61: 655 | D61: 462 | E61: 685 | F61: 458 | G61: 634 | H61: 456 | I61: 712 | J61: 490 | K61: 623 | L61: 452 | M61: 529 | N61: 378 | O61: 524 | P61: 388 | Q61: 421 | R61: 307 | S61: 38 | T61: 31
B62: Ecole Nationale des Ingénieurs de Gafsa | K62: 77 | L62: 35 | M62: 77 | N62: 40 | O62: 92 | P62: 57 | Q62: 109 | R62: 65 | S62: 513 | T62: 378
B63: Total | C63: =SUM(C54:C61) -> 2346 | D63: 1576 | E63: 2405 | F63: 1638 | G63: 2040 | H63: 1382 | I63: 2144 | J63: 1434 | K63: =SUM(K54:K62) -> 1919 | L63: =SUM(L54:L62) -> 1292 | M63: =SUM(M54:M62) -> 1753 | N63: =SUM(N54:N62) -> 1214 | O63: =SUM(O54:O62) -> 2159 | P63: =SUM(P54:P62) -> 1557 | Q63: 1965 | R63: 1409 | S63: =SUM(S54:S62) -> 1891 | T63: =SUM(T54:T62) -> 1349
A65: 6) | B65: Répartition des diplômés par type de diplôme:
B66: Année universitaire | C66: 2013 | E66: 2014 | G66: 2015 | I66: 2016 | K66: 2017 | M66: 2018 | O66: 2019 | Q66: 2020 | S66: 2021
C67: Total | D67: dont femmes | E67: Total | F67: dont femmes | G67: Total | H67: dont femmes | I67: Total | J67: dont femmes | K67: Total | L67: dont femmes | M67: Total | N67: dont femmes | O67: Total | P67: dont femmes | Q67: Total | R67: dont femmes | S67: Total | T67: dont femmes
B68: Licence fondamentale | C68: 873 | D68: 615 | E68: 936 | F68: 696 | G68: 830 | H68: 624 | I68: 960 | J68: 663 | K68: 823 | L68: 581 | M68: 772 | N68: 566 | O68: 653 | P68: 480 | Q68: 714 | R68: 523 | S68: 607 | T68: 431
B69: Licence appliquée | C69: 1326 | D69: 871 | E69: 1251 | F69: 787 | G69: 965 | H69: 598 | I69: 891 | J69: 570 | K69: 793 | L69: 527 | M69: 629 | N69: 430 | O69: 1123 | P69: 805 | Q69: 922 | R69: 670 | S69: 926 | T69: 663
B70: Diplôme national d'ingénieur | K70: 77 | L70: 35 | M70: 77 | N70: 40 | O70: 92 | P70: 57 | Q70: 109 | R70: 65 | S70: 65 | T70: 39
B71: Mastère de recherche | C71: 15 | D71: 9 | E71: 39 | F71: 29 | G71: 101 | H71: 70 | I71: 119 | J71: 85 | K71: 134 | L71: 94 | M71: 176 | N71: 110 | O71: 191 | P71: 141 | Q71: 109 | R71: 89 | S71: 146 | T71: 119
B72: Mastère professionnel | C72: 132 | D72: 81 | E72: 179 | F72: 126 | G72: 144 | H72: 90 | I72: 174 | J72: 116 | K72: 92 | L72: 55 | M72: 99 | N72: 68 | O72: 100 | P72: 74 | Q72: 111 | R72: 62 | S72: 147 | T72: 97
B73: Total | C73: =SUM(C68:C72) -> 2346 | D73: 1576 | E73: 2405 | F73: 1638 | G73: 2040 | H73: 1382 | I73: 2144 | J73: 1434 | K73: =SUM(K68:K72) -> 1919 | L73: 1292 | M73: =SUM(M68:M72) -> 1753 | N73: =SUM(N68:N72) -> 1214 | O73: =SUM(O68:O72) -> 2159 | P73: =SUM(P68:P72) -> 1557 | Q73: 1965 | R73: 1409 | S73: =SUM(S68:S72) -> 1891 | T73: =SUM(T68:T72) -> 1349
A75: 7) | B75: Répartition des diplômés par domaine d'études:
B76: Année universitaire | C76: 2013 | E76: 2014 | G76: 2015 | I76: 2016 | K76: 2017 | M76: 2018 | O76: 2019 | Q76: 2020 | S76: 2021
C77: Total | D77: dont femmes | E77: Total | F77: dont femmes | G77: Total | H77: dont femmes | I77: Total | J77: dont femmes | K77: Total | L77: dont femmes | M77: Total | N77: dont femmes | O77: Total | P77: dont femmes | Q77: Total | R77: dont femmes | S77: Total | T77: dont femmes
B78: Lettres | C78: 360 | D78: 291 | E78: 435 | F78: 362 | G78: 414 | H78: 324 | I78: 324 | J78: 268 | K78: 287 | L78: 226 | M78: 276 | N78: 224 | O78: 209 | P78: 167 | Q78: 188 | R78: 150 | S78: 89 | T78: 72
B79: Affaires commerciales et administratives | C79: 174 | D79: 136 | E79: 173 | F79: 141 | G79: 149 | H79: 121 | I79: 207 | J79: 162 | K79: 139 | L79: 118 | M79: 225 | N79: 177 | O79: 151 | P79: 130 | Q79: 286 | R79: 237 | S79: 261 | T79: 214
B80: Formation des formateurs et sciences de l'éducation | O80: 484 | P80: 395 | Q80: 435 | R80: 369 | S80: 418 | T80: 333
B81: Services aux particuliers | C81: 122 | D81: 51 | E81: 139 | F81: 75 | G81: 85 | H81: 36 | I81: 141 | J81: 53 | K81: 130 | L81: 57 | M81: 71 | N81: 28 | O81: 107 | P81: 49 | Q81: 99 | R81: 33 | S81: 100 | T81: 28
B82: Mathématiques et statistiques | C82: 69 | D82: 38 | E82: 69 | F82: 35 | G82: 48 | H82: 24 | I82: 72 | J82: 33 | K82: 43 | L82: 27 | M82: 33 | N82: 19 | O82: 44 | P82: 28 | Q82: 14 | R82: 9 | S82: 39 | T82: 23
B83: Sciences sociales et du comportement | C83: 95 | D83: 73 | E83: 88 | F83: 79 | G83: 89 | H83: 69 | I83: 77 | J83: 65 | K83: 67 | L83: 56 | M83: 94 | N83: 75 | O83: 113 | P83: 101 | Q83: 83 | R83: 68 | S83: 85 | T83: 71
B84: Sciences informatique et multimédia | C84: 458 | D84: 311 | E84: 386 | F84: 257 | G84: 310 | H84: 206 | I84: 304 | J84: 207 | K84: 233 | L84: 146 | M84: 197 | N84: 132 | O84: 124 | P84: 94 | Q84: 130 | R84: 92 | S84: 176 | T84: 115
B85: Sciences de la vie | C85: 146 | D85: 132 | E85: 111 | F85: 103 | G85: 124 | H85: 113 | I85: 177 | J85: 168 | K85: 177 | L85: 161 | M85: 134 | N85: 121 | O85: 163 | P85: 150 | Q85: 87 | R85: 84 | S85: 146 | T85: 134
B86: Sciences physiques | C86: 191 | D86: 133 | E86: 261 | F86: 197 | G86: 249 | H86: 205 | I86: 259 | J86: 178 | K86: 213 | L86: 160 | M86: 175 | N86: 132 | O86: 115 | P86: 91 | Q86: 107 | R86: 79 | S86: 137 | T86: 113
B87: Arts | C87: 292 | D87: 242 | E87: 197 | F87: 155 | G87: 153 | H87: 128 | I87: 136 | J87: 109 | K87: 99 | L87: 85 | M87: 136 | N87: 118 | O87: 72 | P87: 60 | Q87: 32 | R87: 28 | S87: 38 | T87: 31
B88: Architecture et bâtiment | C88: 36 | D88: 13 | E88: 32 | F88: 6 | G88: 30 | H88: 8 | I88: 55 | J88: 18 | K88: 49 | L88: 18 | M88: 43 | N88: 18 | O88: 89 | P88: 32 | Q88: 63 | R88: 27 | S88: 72 | T88: 25
B89: Ingénierie et techniques apparentées | C89: 403 | D89: 156 | E89: 514 | F89: 228 | G89: 389 | H89: 148 | I89: 392 | J89: 173 | K89: 482 | L89: 238 | M89: 369 | N89: 170 | O89: 488 | P89: 260 | Q89: 441 | R89: 233 | S89: 330 | T89: 190
B90: Total | C90: =SUM(C78:C89) -> 2346 | D90: 1576 | E90: 2405 | F90: 1638 | G90: 2040 | H90: 1382 | I90: 2144 | J90: 1434 | K90: =K89+K88+K87+K86+K85+K84+#REF!+K83+K82+K81+K79+K78 ->  | L90: =L89+L88+L87+L86+L85+L84+#REF!+L83+L82+L81+L79+L78 ->  | M90: =M89+M88+M87+M86+M85+M84+#REF!+M83+M82+M81+M79+M78 ->  | N90: =N89+N88+N87+N86+N85+N84+#REF!+N83+N82+N81+N79+N78 ->  | O90: =SUM(O78:O89) -> 2159 | P90: 1557 | Q90: 1965 | R90: 1409 | S90: 1891 | T90: 1349
A92: 8) | B92: Evolution de l'effectif des étudiants résidents, des cités et des foyers universitaires:
B93: Année universitaire | C93: 2012-2013 | D93: 2013-2014 | E93: 2014-2015 | F93: 2015-2016 | G93: 2016-2017 | J93: 2017-2018 | M93: 2018-2019 | P93: 2019-2020 | S93: 2020-2021 | V93: 2021-2022
G94: Public | H94: S.traitance | I94: Total | J94: Public | K94: S.traitance | L94: Total | M94: Public | N94: S.traitance | O94: Total | P94: Public | Q94: S.traitance | R94: Total | S94: Public | T94: S.traitance | U94: Total | V94: Public | W94: S.traitance | X94: Total
B95: Nombre de foyers | C95: 2 | D95: 2 | E95: 2 | F95: 2 | G95: 2 | H95: 19 | I95: 21 | J95: 1 | K95: 17 | L95: =SUM(J95:K95) -> 18 | M95: 2 | N95: 17 | O95: =SUM(M95:N95) -> 19 | P95: 2 | Q95: 14 | R95: 16 | S95: 2 | T95: 13 | U95: 15 | V95: 2 | W95: 17 | X95: 19
B96: Nombre d'étudiants résidents | C96: 1106 | D96: 1260 | E96: 1089 | F96: 854 | G96: 1368 | H96: 1537 | I96: 2905 | J96: 282 | K96: 1807 | L96: =SUM(J96:K96) -> 2089 | M96: 1422 | N96: 1937 | O96: =SUM(M96:N96) -> 3359 | P96: 1398 | Q96: 1867 | R96: =Q96+P96 -> 3265 | S96: 1341 | T96: 1657 | U96: =T96+S96 -> 2998 | V96: 1080 | W96: 2166 | X96: =SUM(V96:W96) -> 3246
B97: Taux d'hébergement (%) | C97: 11.7 | D97: 14 | E97: 11.8 | F97: 10.8 | G97: 35.9 | J97: 26.5 | M97: 41.8 | P97: 40.6 | S97: 38.9 | V97: 38.9
A99: 9) | B99: Evolution des restaurants et des repas servis par jour:
B100: Année universitaire | C100: 2012-2013 | D100: 2013-2014 | E100: 2014-2015 | F100: 2015-2016 | G100: 2016-2017 | H100: 2017-2018 | I100: 2018-2019 | J100: 2019-2020 | K100: 2020-2021 | L100: 2021-2022
B101: Nombre de restaurants | C101: 2 | D101: 2 | E101: 2 | F101: 2 | G101: 2 | H101: 2 | I101: 2 | J101: 2 | K101: 2 | L101: 2
B102: Nombre de repas servis par jour | C102: 2713 | D102: 2337 | E102: 2246 | F102: 2379 | G102: 2248 | H102: 3691 | I102: 2977 | J102: 2699 | K102: 2912 | L102: 2392
A104: 10) | B104: Repartition des enseignants par grade (*):
B105: Année universitaire | C105: 2013-2014 | E105: 2014-2015 | G105: 2015-2016 | I105: 2016-2017 | K105: 2017-2018 | M105: 2018-2019 | O105: 2019-2020 | Q105: 2020-2021 | S105: 2021-2022
C106: Total | D106: dont femmes | E106: Total | F106: dont femmes | G106: Total | H106: dont femmes | I106: Total | J106: dont femmes | K106: Total | L106: dont femmes | M106: Total | N106: dont femmes | O106: Total | P106: dont femmes | Q106: Total | R106: dont femmes | S106: Total | T106: dont femmes
B107: Professeur | C107: 4 | D107: 0 | E107: 2 | F107: 0 | G107: 2 | H107: 0 | I107: 3 | J107: 0 | K107: 2 | L107: 0 | M107: 6 | N107: 0 | O107: 6 | P107: 1 | Q107: 7 | R107: 1 | S107: 8 | T107: 1
B108: Maître de conférences | C108: 10 | D108: 3 | E108: 8 | F108: 1 | G108: 9 | H108: 2 | I108: 11 | J108: 2 | K108: 18 | L108: 3 | M108: 20 | N108: 3 | O108: 19 | P108: 3 | Q108: 25 | R108: 3 | S108: 27 | T108: 3
B109: Maître assistant | C109: 226 | D109: 74 | E109: 230 | F109: 97 | G109: 288 | H109: 104 | I109: 282 | J109: 99 | K109: 269 | L109: 102 | M109: 265 | N109: 101 | O109: 251 | P109: 97 | Q109: 264 | R109: 118 | S109: 260 | T109: 109
B110: Assistants permenants | C110: 292 | D110: 134 | E110: 274 | F110: 136 | G110: 221 | H110: 122 | I110: 197 | J110: 103 | K110: 141 | L110: 73 | M110: 90 | N110: 45 | O110: 81 | P110: 42 | Q110: 41 | R110: 16 | S110: 39 | T110: 18
B111: **Assistants contractuels | C111: 137.5 | D111: 77 | E111: 107 | F111: 59.5 | G111: 58 | H111: 35.5 | I111: 90 | J111: 55.5
B112: Contractuel Docteur | K112: 15.5 | L112: 9.5 | M112: 64.5 | N112: 50.5 | O112: 69.5 | P112: 45 | Q112: 93.5 | R112: 60.5 | S112: 102 | T112: 66
B113: Contractuel Inscrit en Doctorat | K113: 44 | L113: 30 | M113: 26 | N113: 20 | O113: 22 | P113: 16 | Q113: 7 | R113: 6 | S113: 25 | T113: 15.5
B114: Professeur technologue | I114: 1 | J114: 0 | K114: 0 | L114: 0 | M114: 1 | N114: 0 | O114: 1 | P114: 0 | Q114: 1 | R114: 0 | S114: 1 | T114: 0
B115: Technologue | C115: 68 | D115: 24 | E115: 58 | F115: 18 | G115: 55 | H115: 21 | I115: 49 | J115: 21 | K115: 47 | L115: 18 | M115: 41 | N115: 17 | O115: 34 | P115: 12 | Q115: 34 | R115: 12 | S115: 34 | T115: 12
B116: Maître technologue | C116: 5 | D116: 0 | E116: 10 | F116: 2 | G116: 12 | H116: 2 | I116: 18 | J116: 4 | K116: 18 | L116: 4 | M116: 21 | N116: 5 | O116: 23 | P116: 6 | Q116: 23 | R116: 6 | S116: 23 | T116: 6
B117: Assistant technologue | C117: 10 | D117: 7 | E117: 10 | F117: 7 | G117: 4 | H117: 3 | K117: 0 | L117: 0
B118: Professeur d'enseignement secondaire | C118: 137 | D118: 63 | E118: 129 | F118: 54 | G118: 126 | H118: 55 | I118: 145 | J118: 61 | K118: 86 | L118: 37 | M118: 32 | N118: 13 | O118: 108 | P118: 57 | Q118: 128 | R118: 58 | S118: 121 | T118: 50
B119: Autres grades | C119: 10 | D119: 2 | E119: 18.5 | F119: 9 | G119: 30 | H119: 11.5 | I119: 11 | J119: 2 | K119: 112.5 | L119: 52.5 | M119: 108 | N119: 51 | O119: 62 | P119: 21.5 | Q119: 52 | R119: 20 | S119: 65 | T119: 27
B120: Total | C120: 899.5 | D120: 384 | E120: 846.5 | F120: 383.5 | G120: 805 | H120: 356 | I120: 807 | J120: 347.5 | K120: =SUM(K107:K119) -> 753 | L120: 329 | M120: 674.5 | N120: 305.5 | O120: 676.5 | P120: 300.5 | Q120: 675.5 | R120: 300.5 | S120: =SUM(S107:S119) -> 705 | T120: =SUM(T107:T119) -> 307.5
B121: (*) y compris les enseignants étrangers
B122: (**) La désignation d'un assistants contractuel a été changée en contractuel docteur et en contractuel inscrit en doctorat
A123: II - | B123: Enseignement supérieur privé:
A124: 1) | B124: Evolution des établissements:
B125: Année universitaire | C125: 2014-2015 | D125: 2015-2016 | E125: 2016-2017 | F125: 2017-2018 | G125: 2018-2019 | H125: 2019-2020 | I125: 2020-2021 | J125: 2021-2022
B126: Nombre des établissements | C126: 1 | D126: 1 | E126: 1 | F126: 1 | G126: 1 | H126: 1 | I126: 1 | J126: 1
A128: 2) | B128: Répartition des étudiants inscrits par établissement:
B129: Année universitaire | C129: 2014-2015 | D129: 2015-2016 | E129: 2016-2017 | F129: 2017-2018 | G129: 2018-2019 | H129: 2019-2020 | I129: 2020-2021 | J129: 2021-2022
E130: Total
B131: Ecole supérieure privée des ingénieurs, Gafsa | C131: 94 | D131: 135 | E131: 135 | F131: 123 | G131: 119 | H131: 104 | I131: 94 | J131: 84
B132: Total | C132: 94 | D132: =SUM(D131) -> 135 | E132: =SUM(E131) -> 135 | F132: =SUM(F131) -> 123 | G132: =SUM(G131) -> 119 | H132: 104 | I132: 94 | J132: 84
A134: 3) | B134: Répartition des étudiants inscrits par domaine d'étude: (CITE)
B135: Année universitaire | C135: 2014-2015 | D135: 2015-2016 | E135: 2016-2017 | F135: 2017-2018 | G135: 2018-2019 | H135: 2019-2020 | I135: 2020-2021 | J135: 2021-2022
B137: Ingénierie et techniques apparentées | C137: 14 | D137: 19 | E137: 15 | F137: 17 | G137: 44 | H137: 14 | I137: 17 | J137: 20
B138: Sciences de l'informatiques et de miltimédia | C138: 80 | D138: 116 | E138: 120 | F138: 106 | G138: 75 | H138: 90 | I138: 77 | J138: 64
B139: Total | C139: =SUM(C137:C138) -> 94 | D139: 135 | E139: 135 | F139: 123 | G139: 119 | H139: 104 | I139: 94 | J139: =SUM(J137:J138) -> 84
A141: 4) | B141: Répartition des étudiants inscrits par type de diplôme:
B142: Année universitaire | C142: 2014-2015 | D142: 2015-2016 | E142: 2016-2017 | F142: 2017-2018 | G142: 2018-2019 | H142: 2019-2020 | I142: 2020-2021 | J142: 2021-2022
B144: Cycle préparatoire | C144: 14 | D144: 19 | E144: 15 | F144: 17 | G144: 18 | H144: 14 | I144: 17 | J144: 20
B145: Diplôme d'ingénieur | C145: 80 | D145: 116 | E145: 120 | F145: 106 | G145: 101 | H145: 90 | I145: 77 | J145: 64
B146: total | C146: =SUM(C144:C145) -> 94 | D146: 135 | E146: 135 | F146: 123 | G146: 119 | H146: 104 | I146: 94 | J146: =SUM(J144:J145) -> 84
A149: 5) | B149: Evolution des diplômés du secteur privé par établissement:
B150: Année universitaire | C150: 2016 | D150: 2017 | E150: 2018 | F150: 2019 | G150: 2020 | H150: 2021
C151: total
B152: Ecole supérieure privée des ingénieurs, Gafsa | C152: 25 | D152: 49 | E152: 26 | F152: 37 | G152: 26 | H152: 22
A155: 6) | B155: Répartition des diplômés du secteur privé par type de diplôme:
B156: Année universitaire | C156: 2016 | D156: 2017 | E156: 2018 | F156: 2019 | G156: 2020 | H156: 2021
B158: Diplôme d'ingénieur | C158: 25 | D158: 49 | E158: 26 | F158: 37 | G158: 26 | H158: 22
B159: Total | C159: =SUM(C158) -> 25 | D159: =SUM(D158:D158) -> 49 | E159: =SUM(E158:E158) -> 26 | F159: 37 | G159: 37 | H159: 22
A161: 7) | B161: Répartition des diplômés du secteur privé par domaine d'études:
B162: Année universitaire | C162: 2016 | D162: 2017 | E162: 2018 | F162: 2019 | G162: 2020 | H162: 2021
B164: Sciences de l'informatiques et de miltimédia | C164: 25 | D164: 49 | E164: 26 | F164: 37 | G164: 26 | H164: 22
B165: Total | C165: =SUM(C164) -> 25 | D165: =SUM(D164:D164) -> 49 | E165: =SUM(E164:E164) -> 26 | F165: 37 | G165: 37 | H165: 22
